fUST/lending_fUST_20250930
["ID","MTS","AMOUNT","RATE_DAILY","PERIOD"]
[388492724,1759211519284,-289.50795106,0.0001982,2]
[388492725,1759211519308,-10.49204894,0.0001982,2]
[388492726,1759211522181,-179.42085529,0.0001982,2]
[388492727,1759211523784,-267.75104591,0.00019819,2]
[388492731,1759211529475,-32.24895409,0.00019819,2]
[388492732,1759211529502,-147.75104591,0.0001982,2]
[388492733,1759211531359,-153.2787178,0.00019819,2]
[388492734,1759211533585,-284.86495101,0.00019819,2]
[388492735,1759211535266,-41.85633119,0.00019819,2]
[388492736,1759211535291,-112.98713601,0.0001982,2]
[388492737,1759211537413,-175.95891385,0.0001982,2]
[388492738,1759211537438,-81.27108615,0.0001982,2]
[388492739,1759211542400,-262.890705,0.00019819,2]
[388492740,1759211545085,-590.58,0.00019819,2]
[388492741,1759211548610,-306.15742182,0.00019819,2]
[388492742,1759211552889,-40.37187318,0.00019819,2]
[388492743,1759211552913,-201.49698952,0.0001982,2]
[388492744,1759211554583,-197.23192433,0.0001982,2]
[388492745,1759211554609,-5.99684005,0.0001982,2]
[388492746,1759211555724,-406.45752876,0.0001982,2]
[388492747,1759211556241,-67.54563119,0.0001982,2]
[388492748,1759211556265,-135.68313319,0.0001982,2]
[388492749,1759211570499,972.49270741,0.00019722,2]
[388492750,1759211633371,165.250848,0.00018845,2]
[388492751,1759211644598,199.08438339,0.00019261,2]
[388492752,1759211790478,262.890705,0.00018842,2]
[388492753,1759211841636,850.93111901,0.0001972,2]
[388492754,1759211895378,-360.37186939,0.00019818,2]
[388492755,1759211897724,-500.0,0.00019818,2]
[388492756,1759211899253,-210.09829652,0.00019818,2]
[388492759,1759211903508,-129.52983409,0.00019818,2]
[388492760,1759211903532,-44.44166591,0.00019818,2]
[388492761,1759211905266,-253.58066318,0.00019818,2]
[388492762,1759211908196,-290.33,0.00019818,2]
[388492763,1759211911968,-271.9183814,0.00019818,2]
[388492764,1759211914833,-190.92257818,0.00019818,2]
[388492765,1759211916515,-148.80671133,0.00019818,2]
[388492766,1759211916539,-151.19328867,0.00019819,2]
[388492767,1759211920089,-301.34207398,0.00019819,2]
[388492768,1759211923679,-331.67309115,0.00019819,2]
[388492769,1759211929094,-223.4315462,0.00019819,2]
[388492770,1759211929118,-14.3555641,0.00019819,2]
[388492771,1759211931701,-265.8,0.00019819,2]
[388492772,1759211952918,-300.0,0.00019818,2]
[388492773,1759211952945,-260.2044359,0.00019819,2]
[388492774,1759211952971,-463.55943747,0.00019819,2]
[388492775,1759211955024,-80.75056253,0.00019819,2]
[388492776,1759211955049,-155.7978272,0.00019819,2]
[388492777,1759211957365,-286.9570534,0.00019819,2]
[388492778,1759211959585,-300.0,0.00019819,2]
[388492779,1759211962711,-255.02057321,0.00019819,2]
[388492780,1759211965008,-310.51582511,0.00019819,2]
[388492781,1759211967259,-151.0,0.00019819,2]
[388492782,1759211969969,-163.33869558,0.00019819,2]
[388492783,1759211971746,-304.44964771,0.00019819,2]
[388492784,1759211975773,-2009.83455134,0.00019819,2]
[388492785,1759211978112,-133.57582645,0.00019819,2]
[388492786,1759211978139,-156.61580492,0.00019819,2]
[388492787,1759211978166,-199.73350451,0.00019819,2]
[388492788,1759211980553,-170.67103699,0.00019819,2]
[388492789,1759211983146,-300.0,0.00019819,2]
[388492790,1759211985355,-1024.73054007,0.00019819,2]
[388492791,1759211987652,-270.35204766,0.00019819,2]
[388492792,1759211990432,-347.53651571,0.00019819,2]
[388492793,1759211992447,-251.00829652,0.00019819,2]
[388492794,1759211995940,-160.0,0.00019819,2]
[388492795,1759211999069,-346.41933682,0.00019819,2]
[388492796,1759212014026,-300.0,0.00019818,2]
[388492797,1759212014055,-392.83867364,0.00019818,2]
[388492798,1759212106459,151.21272606,0.0001972,2]
[388492799,1759212112157,744.56472916,0.0001972,2]
[388492802,1759212164259,800.0,0.00019571,2]
[388492804,1759212223012,800.0,0.00019547,2]
[388492805,1759212223061,800.0,0.00019696,2]
[388492806,1759212223124,800.0,0.00019617,2]
[388492807,1759212223179,800.0,0.00019597,2]
[388492808,1759212223230,457.87576498,0.00019764,2]
[388492809,1759212223256,342.12423502,0.00019764,2]
[388492810,1759212223288,597.2243712,0.00019669,2]
[388492811,1759212259485,442.0,0.00028767,120]
[388492812,1759212332228,-800.0,0.00019801,2]
[388492813,1759212332249,-300.0,0.00019817,2]
[388492814,1759212332268,-300.0,0.00019817,2]
[388492815,1759212332289,-1200.0,0.00019817,2]
[388492816,1759212332308,-1200.0,0.00019818,2]
[388492817,1759212332485,-527.3045014,0.00019818,2]
[388492818,1759212332506,-480.0,0.00019818,2]
[388492819,1759212332528,-765.6,0.00019818,2]
[388492820,1759212332547,-480.0,0.00019818,2]
[388492821,1759212332567,-480.0,0.00019818,2]
[388492822,1759212332586,-19652.66480189,0.00019819,2]
[388492823,1759212332606,-480.0,0.00019819,2]
[388492824,1759212332626,-480.0,0.00019819,2]
[388492825,1759212332645,-480.0,0.00019819,2]
[388492826,1759212332664,-483.80435587,0.00019819,2]
[388492827,1759212332683,-544.52,0.00019819,2]
[388492828,1759212332704,-480.0,0.00019819,2]
[388492829,1759212332724,-249.75944046,0.00019819,2]
[388492830,1759212332743,-480.0,0.00019819,2]
[388492831,1759212332763,-480.0,0.00019819,2]
[388492832,1759212332786,-661.55,0.00019819,2]
[388492833,1759212332807,-533.29508209,0.00019819,2]
[388492834,1759212332827,-480.0,0.00019819,2]
[388492835,1759212332848,-480.0,0.00019819,2]
[388492836,1759212332870,-480.0,0.00019819,2]
[388492837,1759212332889,-480.0,0.00019819,2]
[388492838,1759212332909,-480.0,0.00019819,2]
[388492839,1759212332929,-480.0,0.00019819,2]
[388492840,1759212332949,-480.0,0.00019819,2]
[388492841,1759212332969,-480.0,0.00019819,2]
[388492842,1759212332989,-480.0,0.00019819,2]
[388492843,1759212333009,-901.42,0.00019819,2]
[388492844,1759212333029,-480.0,0.00019819,2]
[388492845,1759212333051,-480.0,0.00019819,2]
[388492846,1759212333071,-480.0,0.00019819,2]
[388492847,1759212333093,-568.08,0.00019819,2]
[388492848,1759212333128,-329.8912116,0.00019819,2]
[388492849,1759212333152,-500.0,0.00019819,2]
[388492850,1759212333174,-202.70727331,0.00019819,2]
[388492851,1759212333199,-500.0,0.00019819,2]
[388492852,1759212333222,-500.0,0.00019819,2]
[388492853,1759212333244,-643.3,0.00019819,2]
[388492854,1759212333266,-500.0,0.00019819,2]
[388492855,1759212333287,-248.32124548,0.00019819,2]
[388492856,1759212333310,-500.0,0.00019819,2]
[388492857,1759212333333,-500.0,0.00019819,2]
[388492858,1759212333354,-500.0,0.00019819,2]
[388492859,1759212333375,-1013.64,0.00019819,2]
[388492860,1759212333395,-480.0,0.00019819,2]
[388492861,1759212333418,-500.0,0.00019819,2]
[388492862,1759212333440,-250.0,0.00019819,2]
[388492863,1759212333462,-480.0,0.00019819,2]
[388492864,1759212333484,-487.08,0.00019819,2]
[388492865,1759212333504,-480.0,0.00019819,2]
[388492866,1759212333525,-480.0,0.00019819,2]
[388492867,1759212333546,-480.0,0.00019819,2]
[388492868,1759212333567,-3900.89,0.00019819,2]
[388492869,1759212333588,-2969.12,0.00019819,2]
[388492870,1759212333609,-517.84,0.00019819,2]
[388492871,1759212333629,-480.0,0.00019819,2]
[388492872,1759212333650,-830.21,0.00019819,2]
[388492873,1759212333671,-480.0,0.00019819,2]
[388492874,1759212333691,-480.0,0.00019819,2]
[388492875,1759212333711,-480.0,0.00019819,2]
[388492876,1759212333731,-480.0,0.00019819,2]
[388492877,1759212333751,-480.0,0.00019819,2]
[388492878,1759212333772,-600.5,0.00019819,2]
[388492879,1759212333794,-480.0,0.0001982,2]
[388492880,1759212333814,-480.0,0.0001982,2]
[388492881,1759212333834,-480.0,0.0001982,2]
[388492882,1759212333856,-483.80958852,0.0001982,2]
[388492883,1759212333876,-608.01,0.0001982,2]
[388492884,1759212333897,-480.0,0.0001982,2]
[388492885,1759212333917,-480.0,0.0001982,2]
[388492886,1759212333938,-480.0,0.0001982,2]
[388492887,1759212333958,-765.79,0.0001982,2]
[388492888,1759212333978,-480.0,0.0001982,2]
[388492889,1759212333998,-480.0,0.0001982,2]
[388492890,1759212334018,-480.0,0.0001982,2]
[388492891,1759212334038,-480.0,0.0001982,2]
[388492892,1759212334059,-480.0,0.0001982,2]
[388492893,1759212334081,-480.0,0.0001982,2]
[388492894,1759212334102,-480.0,0.0001982,2]
[388492895,1759212334122,-548.79,0.0001982,2]
[388492896,1759212334144,-433.52012364,0.0001982,2]
[388492897,1759212334166,-480.0,0.0001982,2]
[388492898,1759212334187,-480.0,0.0001982,2]
[388492899,1759212334208,-480.0,0.0001982,2]
[388492900,1759212334227,-480.0,0.0001982,2]
[388492901,1759212334247,-480.0,0.0001982,2]
[388492902,1759212334267,-480.0,0.0001982,2]
[388492903,1759212334288,-480.0,0.0001982,2]
[388492904,1759212334312,-480.0,0.0001982,2]
[388492905,1759212334333,-959.53,0.0001982,2]
[388492906,1759212334355,-480.0,0.0001982,2]
[388492907,1759212334375,-480.0,0.0001982,2]
[388492908,1759212334395,-480.0,0.0001982,2]
[388492909,1759212334415,-480.0,0.0001982,2]
[388492910,1759212334442,-482.73698072,0.0001982,2]
[388492911,1759212334464,-480.0,0.0001982,2]
[388492912,1759212334484,-480.0,0.0001982,2]
[388492913,1759212334505,-480.0,0.0001982,2]
[388492914,1759212334527,-480.0,0.0001982,2]
[388492915,1759212334547,-1066.73,0.0001982,2]
[388492916,1759212334570,-509.36,0.0001982,2]
[388492917,1759212334590,-500.0,0.0001982,2]
[388492918,1759212334610,-504.84,0.0001982,2]
[388492919,1759212334630,-480.0,0.0001982,2]
[388492920,1759212334651,-641.16,0.0001982,2]
[388492921,1759212334672,-259.08852883,0.0001982,2]
[388492922,1759212334692,-480.0,0.0001982,2]
[388492923,1759212334712,-480.0,0.0001982,2]
[388492924,1759212334733,-548.08,0.0001982,2]
[388492925,1759212334754,-897.41,0.0001982,2]
[388492926,1759212334774,-480.0,0.0001982,2]
[388492927,1759212334799,-480.0,0.0001982,2]
[388492928,1759212334821,-480.0,0.0001982,2]
[388492929,1759212334842,-480.0,0.0001982,2]
[388492930,1759212334865,-480.0,0.0001982,2]
[388492931,1759212334887,-480.0,0.0001982,2]
[388492932,1759212334908,-480.0,0.0001982,2]
[388492933,1759212334929,-1313.21,0.0001982,2]
[388492934,1759212334950,-480.0,0.0001982,2]
[388492935,1759212334970,-480.0,0.0001982,2]
[388492936,1759212334991,-480.0,0.0001982,2]
[388492937,1759212335012,-915.9,0.0001982,2]
[388492938,1759212335033,-480.0,0.0001982,2]
[388492939,1759212335054,-724.83,0.0001982,2]
[388492940,1759212335077,-480.0,0.0001982,2]
[388492941,1759212335098,-480.0,0.0001982,2]
[388492942,1759212335121,-480.0,0.0001982,2]
[388492943,1759212335144,-237.0494904,0.0001982,2]
[388492944,1759212335166,-480.0,0.0001982,2]
[388492945,1759212335187,-480.0,0.0001982,2]
[388492946,1759212335207,-480.0,0.0001982,2]
[388492947,1759212335228,-480.0,0.0001982,2]
[388492948,1759212335248,-480.0,0.0001982,2]
[388492949,1759212335269,-712.8,0.0001982,2]
[388492950,1759212335290,-480.0,0.0001982,2]
[388492951,1759212335311,-480.0,0.0001982,2]
[388492952,1759212335332,-480.0,0.0001982,2]
[388492953,1759212335354,-480.0,0.0001982,2]
[388492954,1759212335375,-480.0,0.0001982,2]
[388492955,1759212335396,-480.0,0.0001982,2]
[388492956,1759212335418,-480.0,0.0001982,2]
[388492957,1759212335440,-480.0,0.0001982,2]
[388492958,1759212335461,-224.678,0.0001982,2]
[388492959,1759212335482,-480.0,0.0001982,2]
[388492960,1759212335504,-480.0,0.00019821,2]
[388492961,1759212335525,-480.0,0.00019821,2]
[388492962,1759212335549,-480.0,0.00019821,2]
[388492963,1759212335579,-500.0,0.00019821,2]
[388492964,1759212335602,-196.66817005,0.00019878,2]
[388492965,1759212335625,-151.0,0.00019878,2]
[388492966,1759212335646,-151.0,0.00019878,2]
[388492967,1759212335822,-151.0,0.00019878,2]
[388492968,1759212335846,-151.0,0.00019878,2]
[388492969,1759212335869,-151.0,0.00019878,2]
[388492970,1759212335891,-151.0,0.00019878,2]
[388492971,1759212335915,-151.0,0.00019878,2]
[388492972,1759212335936,-151.0,0.00019878,2]
[388492973,1759212335958,-151.0,0.00019878,2]
[388492974,1759212335980,-151.0,0.00019878,2]
[388492975,1759212336002,-151.0,0.00019878,2]
[388492976,1759212336023,-151.0,0.00019878,2]
[388492977,1759212336045,-151.0,0.00019878,2]
[388492978,1759212336067,-151.0,0.00019878,2]
[388492979,1759212336089,-151.0,0.00019878,2]
[388492980,1759212336111,-151.0,0.00019878,2]
[388492981,1759212336132,-151.0,0.00019878,2]
[388492982,1759212336153,-151.0,0.00019878,2]
[388492983,1759212336174,-151.0,0.00019878,2]
[388492984,1759212336195,-151.0,0.00019878,2]
[388492985,1759212336216,-153.76673585,0.00019878,2]
[388492986,1759212336238,-2987.37,0.0001988,3]
[388492987,1759212336258,-1493.69,0.0001988,3]
[388492988,1759212336279,-746.84,0.0001988,3]
[388492989,1759212336299,-373.42,0.0001988,3]
[388492990,1759212336332,-186.71,0.0001988,3]
[388492991,1759212336353,-560.17,0.0001988,3]
[388492992,1759212336376,-370000.0,0.0001989,2]
[388492993,1759212336397,-100000.0,0.0001999,2]
[388492994,1759212336416,-1079.18136906,0.00019997,2]
[388492995,1759212336437,-203.69420891,0.0002,2]
[388492996,1759212336694,151.0,0.0001999,2]
[388492997,1759212344355,483.8,0.00019819,2]
[388492998,1759212344417,251.97102646,0.00019949,2]
[388492999,1759212346356,521.63,0.00019819,2]
[388493000,1759212349675,480.0,0.00019819,2]
[388493001,1759212352677,614.45,0.00019819,2]
[388493002,1759212353383,480.0,0.00019818,2]
[388493003,1759212354425,480.0,0.00019818,2]
[388493004,1759212355220,480.0,0.00019819,2]
[388493005,1759212355567,607.39,0.00019818,2]
[388493006,1759212356095,480.0,0.00019819,2]
[388493007,1759212357635,480.0,0.00019818,2]
[388493008,1759212359353,481.39544625,0.00019818,2]
[388493009,1759212360832,481.50929488,0.00019819,2]
[388493010,1759212361576,480.0,0.00019819,2]
[388493011,1759212362769,665.63,0.00019818,2]
[388493012,1759212364845,480.0,0.00019819,2]
[388493013,1759212365629,480.0,0.00019819,2]
[388493014,1759212366023,480.0,0.00019818,2]
[388493015,1759212368880,-800.0,0.00020068,2]
[388493016,1759212368901,-800.0,0.00020084,2]
[388493017,1759212368922,-300.0,0.00020091,2]
[388493018,1759212368942,-480.0,0.00020092,2]
[388493019,1759212368963,-765.6,0.00020092,2]
[388493020,1759212368983,-480.0,0.00020092,2]
[388493021,1759212369005,-480.0,0.00020092,2]
[388493022,1759212369025,-480.0,0.00020092,2]
[388493023,1759212369046,-665.63,0.00020092,2]
[388493024,1759212369067,-462.21,0.00020092,2]
[388493025,1759212369088,-480.0,0.00020093,2]
[388493026,1759212369109,-480.0,0.00020093,2]
[388493027,1759212369129,-480.0,0.00020093,2]
[388493028,1759212369150,-480.0,0.00020093,2]
[388493029,1759212369171,-544.52,0.00020093,2]
[388493030,1759212369190,-480.0,0.00020093,2]
[388493031,1759212369210,-480.0,0.00020093,2]
[388493032,1759212369230,-480.0,0.00020093,2]
[388493033,1759212369249,-661.55,0.00020093,2]
[388493034,1759212369268,-480.0,0.00020093,2]
[388493035,1759212369287,-193.87296961,0.00020093,2]
[388493036,1759212369305,-480.0,0.00020093,2]
[388493037,1759212369324,-480.0,0.00020093,2]
[388493038,1759212369345,-480.0,0.00020093,2]
[388493039,1759212369365,-480.0,0.00020093,2]
[388493040,1759212369384,-480.0,0.00020093,2]
[388493041,1759212369404,-480.0,0.00020093,2]
[388493042,1759212369423,-480.0,0.00020093,2]
[388493043,1759212369442,-901.42,0.00020093,2]
[388493044,1759212369462,-480.0,0.00020093,2]
[388493045,1759212369481,-480.0,0.00020093,2]
[388493046,1759212369501,-1013.64,0.00020093,2]
[388493047,1759212369520,-480.0,0.00020093,2]
[388493048,1759212369540,-487.08,0.00020093,2]
[388493049,1759212369560,-480.0,0.00020093,2]
[388493050,1759212369580,-480.0,0.00020093,2]
[388493051,1759212369600,-3900.89,0.00020093,2]
[388493052,1759212369622,-2969.12,0.00020093,2]
[388493053,1759212369642,-517.84,0.00020093,2]
[388493054,1759212369662,-278.32,0.00020093,2]
[388493055,1759212369686,-830.21,0.00020093,2]
[388493056,1759212369707,-480.0,0.00020093,2]
[388493057,1759212369727,-480.0,0.00020093,2]
[388493058,1759212369746,-480.0,0.00020093,2]
[388493059,1759212369766,-480.0,0.00020093,2]
[388493060,1759212369786,-480.0,0.00020093,2]
[388493061,1759212369806,-600.5,0.00020093,2]
[388493062,1759212369826,-483.8,0.00020093,2]
[388493063,1759212369851,-521.63,0.00020093,2]
[388493064,1759212369870,-43.06015472,0.00020093,2]
[388493066,1759212451550,-1200.0,0.00019718,2]
[388493067,1759212451573,-300.0,0.00019719,2]
[388493068,1759212451594,-5000.0,0.00019719,2]
[388493069,1759212451617,-363500.0,0.0001972,2]
[388493193,1759212635373,-5000.0,0.00019719,3]
[388493195,1759212635384,-300.0,0.00019719,2]
[388493196,1759212635393,-1200.0,0.00019719,2]
[388493197,1759212635403,-6500.0,0.0001972,2]
[388493198,1759212635414,-480.0,0.00019817,2]
[388493199,1759212635426,-480.0,0.00019817,2]
[388493200,1759212635435,-480.0,0.00019817,2]
[388493201,1759212635446,-480.0,0.00019817,2]
[388493202,1759212635456,-480.0,0.00019817,2]
[388493203,1759212635466,-480.0,0.00019818,2]
[388493204,1759212635475,-480.0,0.00019818,2]
[388493205,1759212635485,-480.0,0.00019818,2]
[388493206,1759212635494,-480.0,0.00019818,2]
[388493207,1759212635504,-480.0,0.00019818,2]
[388493208,1759212635513,-481.27346628,0.00019818,2]
[388493211,1759212635522,-480.0,0.00019818,2]
[388493215,1759212635532,-480.0,0.00019818,2]
[388493217,1759212635541,-480.0,0.00019818,2]
[388493219,1759212635550,-604.94564943,0.00019818,2]
[388493221,1759212635559,-480.0,0.00019818,2]
[388493223,1759212635569,-480.0,0.00019818,2]
[388493224,1759212635578,-1517.94356341,0.00019818,2]
[388493236,1759212643574,-480.0,0.00019817,2]
[388493237,1759212643583,-1889.57643659,0.00019818,2]
[388493238,1759212643593,-480.0,0.00019818,2]
[388493239,1759212643602,-480.0,0.00019818,2]
[388493240,1759212643611,-480.0,0.00019818,2]
[388493241,1759212643620,-480.0,0.00019818,2]
[388493242,1759212643628,-480.0,0.00019818,2]
[388493243,1759212643638,-480.0,0.00019818,2]
[388493244,1759212643647,-480.0,0.00019818,2]
[388493245,1759212643656,-3861.2,0.00019818,2]
[388493246,1759212643665,-480.0,0.00019818,2]
[388493247,1759212643675,-557.8,0.00019818,2]
[388493248,1759212643683,-480.0,0.00019818,2]
[388493249,1759212643692,-480.0,0.00019818,2]
[388493250,1759212643702,-480.0,0.00019818,2]
[388493251,1759212643711,-481.2948824,0.00019818,2]
[388493252,1759212643719,-480.0,0.00019818,2]
[388493253,1759212643728,-482.2718418,0.00019818,2]
[388493254,1759212643737,-500.0,0.00019819,2]
[388493255,1759212643746,-525.24,0.00019819,2]
[388493256,1759212643755,-480.0,0.00019819,2]
[388493257,1759212643765,-480.0,0.00019819,2]
[388493258,1759212643774,-481.73991421,0.00019819,2]
[388493259,1759212643783,-480.0,0.00019819,2]
[388493260,1759212643792,-480.0,0.00019819,2]
[388493261,1759212643801,-480.0,0.00019819,2]
[388493262,1759212643810,-480.0,0.00019819,2]
[388493263,1759212643819,-480.0,0.00019819,2]
[388493264,1759212643828,-1258.49,0.00019819,2]
[388493265,1759212643837,-480.0,0.00019819,2]
[388493266,1759212643846,-480.0,0.00019819,2]
[388493267,1759212643855,-480.0,0.00019819,2]
[388493268,1759212643864,-877.74,0.00019819,2]
[388493269,1759212643873,-480.0,0.00019819,2]
[388493270,1759212643882,-480.0,0.00019819,2]
[388493271,1759212643891,-480.0,0.00019819,2]
[388493272,1759212643899,-694.63,0.00019819,2]
[388493273,1759212643908,-480.0,0.00019819,2]
[388493274,1759212643918,-480.0,0.00019819,2]
[388493275,1759212643927,-480.0,0.00019819,2]
[388493276,1759212643936,-482.17473162,0.00019819,2]
[388493277,1759212643945,-622.9,0.00019819,2]
[388493278,1759212643954,-480.0,0.00019819,2]
[388493279,1759212643963,-482.15105577,0.00019819,2]
[388493280,1759212643972,-480.0,0.00019819,2]
[388493281,1759212643981,-733.88,0.00019819,2]
[388493282,1759212643995,-499.15,0.00019819,2]
[388493283,1759212644004,-482.36364833,0.00019819,2]
[388493284,1759212644013,-480.0,0.00019819,2]
[388493285,1759212644022,-480.0,0.00019819,2]
[388493286,1759212644032,-480.0,0.00019819,2]
[388493287,1759212644041,-480.0,0.00019819,2]
[388493288,1759212644051,-482.83459384,0.00019819,2]
[388493289,1759212644060,-480.0,0.00019819,2]
[388493290,1759212644072,-480.0,0.00019819,2]
[388493291,1759212644082,-265.14944699,0.00019819,2]
[388493292,1759212644091,-480.0,0.00019819,2]
[388493293,1759212644100,-480.0,0.00019819,2]
[388493294,1759212644111,-480.0,0.00019819,2]
[388493295,1759212644120,-480.0,0.00019819,2]
[388493296,1759212644129,-480.0,0.00019819,2]
[388493297,1759212644138,-480.0,0.00019819,2]
[388493298,1759212644147,-481.87980421,0.00019819,2]
[388493299,1759212644157,-480.0,0.00019819,2]
[388493300,1759212644166,-480.0,0.00019819,2]
[388493301,1759212644175,-480.0,0.00019819,2]
[388493302,1759212644185,-525.93,0.00019819,2]
[388493303,1759212644195,-480.0,0.00019819,2]
[388493304,1759212644206,-480.0,0.00019819,2]
[388493305,1759212644216,-480.0,0.00019819,2]
[388493306,1759212644225,-480.0,0.00019819,2]
[388493307,1759212644235,-482.86480191,0.00019819,2]
[388493308,1759212644244,-480.0,0.00019819,2]
[388493309,1759212644253,-480.0,0.00019819,2]
[388493310,1759212644263,-421.22194034,0.00019819,2]
[388493311,1759212644272,-919.55,0.00019819,2]
[388493312,1759212644281,-480.0,0.00019819,2]
[388493313,1759212644291,-480.0,0.00019819,2]
[388493314,1759212644299,-480.0,0.00019819,2]
[388493315,1759212644308,-480.0,0.00019819,2]
[388493316,1759212644318,-480.0,0.00019819,2]
[388493317,1759212644327,-480.0,0.00019819,2]
[388493318,1759212644336,-480.0,0.00019819,2]
[388493319,1759212644346,-480.0,0.00019819,2]
[388493320,1759212644355,-480.0,0.00019819,2]
[388493321,1759212644364,-480.0,0.00019819,2]
[388493322,1759212644374,-480.0,0.00019819,2]
[388493323,1759212644383,-480.0,0.00019819,2]
[388493324,1759212644392,-480.0,0.00019819,2]
[388493325,1759212644402,-480.0,0.00019819,2]
[388493326,1759212644411,-480.0,0.00019819,2]
[388493327,1759212644419,-480.0,0.00019819,2]
[388493328,1759212644428,-480.0,0.00019819,2]
[388493329,1759212644437,-480.0,0.00019819,2]
[388493330,1759212644446,-480.0,0.00019819,2]
[388493331,1759212644455,-480.0,0.00019819,2]
[388493332,1759212644464,-480.0,0.00019819,2]
[388493333,1759212644473,-166.67,0.00019819,2]
[388493334,1759212644482,-488.14,0.00019819,2]
[388493335,1759212644491,-480.0,0.00019819,2]
[388493336,1759212644500,-1022.29,0.00019819,2]
[388493337,1759212644509,-809.38602679,0.00019997,2]
[388493338,1759212644518,-1929.34,0.00020084,3]
[388493339,1759212644527,-964.67,0.00020084,3]
[388493340,1759212644536,-482.33,0.00020084,3]
[388493341,1759212644545,-480.0,0.00020091,2]
[388493342,1759212644554,-480.0,0.00020091,2]
[388493343,1759212644563,-480.0,0.00020091,2]
[388493344,1759212644572,-480.0,0.00020091,2]
[388493345,1759212644580,-480.0,0.00020092,2]
[388493346,1759212644590,-611.53,0.00020092,2]
[388493347,1759212644599,-613.33563229,0.00020092,2]
[388493348,1759212644608,-480.0,0.00020092,2]
[388493349,1759212644617,-480.0,0.00020092,2]
[388493350,1759212644625,-480.0,0.00020092,2]
[388493351,1759212644634,-480.0,0.00020092,2]
[388493352,1759212644643,-480.0,0.00020092,2]
[388493353,1759212644652,-394.12,0.00020092,2]
[388493354,1759212644660,-584.99824522,0.00020092,2]
[388493355,1759212644669,-3407.52,0.00020092,2]
[388493356,1759212644678,-480.0,0.00020092,2]
[388493357,1759212644687,-480.0,0.00020092,2]
[388493358,1759212644695,-480.0,0.00020092,2]
[388493359,1759212644704,-480.0,0.00020092,2]
[388493360,1759212644713,-480.0,0.00020092,2]
[388493361,1759212644722,-480.0,0.00020092,2]
[388493362,1759212644730,-3861.2,0.00020092,2]
[388493363,1759212644739,-480.0,0.00020092,2]
[388493364,1759212644748,-701.8,0.00020092,2]
[388493365,1759212644756,-480.0,0.00020092,2]
[388493366,1759212644765,-500.0,0.00020092,2]
[388493367,1759212644774,-500.0,0.00020092,2]
[388493368,1759212644783,-500.0,0.00020092,2]
[388493369,1759212644793,-500.0,0.00020092,2]
[388493370,1759212644802,-500.0,0.00020092,2]
[388493371,1759212644811,-500.0,0.00020092,2]
[388493372,1759212644820,-500.0,0.00020092,2]
[388493373,1759212644828,-398.82487184,0.00020092,2]
[388493374,1759212644838,-333.39454883,0.00020092,2]
[388493375,1759212644847,-480.0,0.00020092,2]
[388493376,1759212644857,-480.0,0.00020092,2]